[Event "*** Titled Tuesday Blitz"]
[Site "Chess.com"]
[Date "2021.02.09"]
[Round "5"]
[White "Reader777"]
[Black "Alindsay211"]
[Result "1/2-1/2"]
[WhiteElo "2803"]
[BlackElo "2428"]
[TimeControl "180+1"]
[EndTime "10:54:47 PST"]
[Termination "Game drawn by agreement"]

1. d4 {[%clk 0:03:00.9]} 1... d5 {[%clk 0:02:48.7]} 2. c4 {[%clk 0:03:00.9]}
2... e6 {[%clk 0:02:47.6]} 3. Nc3 {[%clk 0:02:57.2]} 3... Nf6 {[%clk 0:02:47]}
4. cxd5 {[%clk 0:02:56.2]} 4... exd5 {[%clk 0:02:47.1]} 5. Bg5 {[%clk
0:02:55.8]} 5... Be7 {[%clk 0:02:45.1]} 6. e3 {[%clk 0:02:55.5]} 6... O-O {[%clk
0:02:45.1]} 7. Bd3 {[%clk 0:02:55]} 7... c6 {[%clk 0:02:45.1]} 8. Qc2 {[%clk
0:02:54.9]} 8... Nbd7 {[%clk 0:02:43.7]} 9. Nge2 {[%clk 0:02:54.5]} 9... h6
{[%clk 0:02:42.5]} 10. Bf4 {[%clk 0:02:52]} 10... b5 {[%clk 0:02:35.6]} 11. h3
{[%clk 0:02:50]} 11... a5 {[%clk 0:02:20]} 12. O-O {[%clk 0:02:48]} 12... Ba6
{[%clk 0:02:19.6]} 13. Rac1 {[%clk 0:02:42.9]} 13... b4 {[%clk 0:02:12.8]} 14.
Na4 {[%clk 0:02:41.8]} 14... Bxd3 {[%clk 0:02:11.5]} 15. Qxd3 {[%clk 0:02:41.6]}
15... Nb6 {[%clk 0:02:09.1]} 16. Nxb6 {[%clk 0:02:31.9]} 16... Qxb6 {[%clk
0:02:10]} 17. Qc2 {[%clk 0:02:31.6]} 17... Rac8 {[%clk 0:02:03.4]} 18. Qa4
{[%clk 0:02:31.4]} 18... Rfd8 {[%clk 0:01:59.5]} 19. Rc2 {[%clk 0:02:29.4]}
19... Nd7 {[%clk 0:01:56.4]} 20. Rfc1 {[%clk 0:02:27.2]} 20... c5 {[%clk
0:01:48.1]} 21. Rd2 {[%clk 0:01:56]} 21... c4 {[%clk 0:01:46.1]} 22. Bg3 {[%clk
0:01:48.7]} 22... Bf6 {[%clk 0:01:41.6]} 23. Nf4 {[%clk 0:01:46.2]} 23... Nf8
{[%clk 0:01:38.2]} 24. a3 {[%clk 0:01:43.2]} 24... b3 {[%clk 0:01:30.8]} 25. f3
{[%clk 0:01:11.6]} 1/2-1/2

[Event "*** Titled Tuesday Blitz"]
[Site "Chess.com"]
[Date "2021.02.09"]
[Round "5"]
[White "BigAl"]
[Black "theultimatehunter"]
[Result "1-0"]
[WhiteElo "2473"]
[BlackElo "2232"]
[TimeControl "180+1"]
[EndTime "10:54:50 PST"]
[Termination "BigAl won by resignation"]

1. Nf3 {[%clk 0:03:00.9]} 1... d5 {[%clk 0:02:59.8]} 2. g3 {[%clk 0:03:00.4]}
2... Nf6 {[%clk 0:03:00.1]} 3. Bg2 {[%clk 0:03:01]} 3... Bf5 {[%clk 0:03:00.7]}
4. O-O {[%clk 0:03:01.5]} 4... c6 {[%clk 0:03:01.3]} 5. d3 {[%clk 0:03:02.1]}
5... e6 {[%clk 0:03:01.2]} 6. c4 {[%clk 0:03:02.8]} 6... h6 {[%clk 0:02:59.1]}
7. Be3 {[%clk 0:03:03.4]} 7... Be7 {[%clk 0:02:57.7]} 8. Qb3 {[%clk 0:03:03.7]}
8... Qc8 {[%clk 0:02:54.8]} 9. Nc3 {[%clk 0:02:59.6]} 9... O-O {[%clk
0:02:53.3]} 10. cxd5 {[%clk 0:02:58.3]} 10... exd5 {[%clk 0:02:45.1]} 11. Rac1
{[%clk 0:02:57.5]} 11... Nbd7 {[%clk 0:02:18]} 12. Nd4 {[%clk 0:02:49.9]} 12...
Bg6 {[%clk 0:02:15.2]} 13. Nxd5 {[%clk 0:02:20.6]} 13... Nxd5 {[%clk 0:02:07.5]}
14. Bxd5 {[%clk 0:02:20.5]} 14... Nc5 {[%clk 0:02:00.8]} 15. Nxc6 {[%clk
0:02:07.9]} 15... bxc6 {[%clk 0:00:53.1]} 16. Bxc5 {[%clk 0:02:06.4]} 16... Rb8
{[%clk 0:00:20.1]} 17. Qa3 {[%clk 0:02:06.4]} 17... Bxc5 {[%clk 0:00:20.1]} 18.
Rxc5 {[%clk 0:02:05.9]} 18... Qb7 {[%clk 0:00:18.5]} 19. Rxc6 {[%clk 0:01:56.3]}
19... Qxb2 {[%clk 0:00:18.5]} 20. Qxb2 {[%clk 0:01:51.8]} 20... Rxb2 {[%clk
0:00:19.4]} 21. Rxg6 {[%clk 0:01:51.5]} 1-0

[Event "*** Titled Tuesday Blitz"]
[Site "Chess.com"]
[Date "2021.02.09"]
[Round "5"]
[White "francyIM"]
[Black "AlexOstrovskiy"]
[Result "0-1"]
[WhiteElo "2567"]
[BlackElo "2768"]
[TimeControl "180+1"]
[EndTime "10:55:00 PST"]
[Termination "AlexOstrovskiy won by resignation"]

1. d4 {[%clk 0:03:00.6]} 1... Nf6 {[%clk 0:02:59.2]} 2. c4 {[%clk 0:02:54.5]}
2... e5 {[%clk 0:02:55.9]} 3. dxe5 {[%clk 0:02:52]} 3... Ng4 {[%clk 0:02:56]} 4.
e3 {[%clk 0:02:51.9]} 4... Nxe5 {[%clk 0:02:56.1]} 5. f4 {[%clk 0:02:41.3]} 5...
Nec6 {[%clk 0:02:54.1]} 6. Nc3 {[%clk 0:02:41.1]} 6... g6 {[%clk 0:02:52.7]} 7.
Bd3 {[%clk 0:02:35.7]} 7... Bg7 {[%clk 0:02:52.2]} 8. Nge2 {[%clk 0:02:36.6]}
8... O-O {[%clk 0:02:49.7]} 9. O-O {[%clk 0:02:36.6]} 9... d6 {[%clk 0:02:50.6]}
10. Ng3 {[%clk 0:02:35.2]} 10... Na6 {[%clk 0:02:46.1]} 11. a3 {[%clk
0:02:26.7]} 11... Nc5 {[%clk 0:02:45.2]} 12. Bc2 {[%clk 0:02:26.5]} 12... a5
{[%clk 0:02:44.7]} 13. Nd5 {[%clk 0:02:25.5]} 13... Ne7 {[%clk 0:02:39.6]} 14.
Rb1 {[%clk 0:02:23.3]} 14... a4 {[%clk 0:02:29.1]} 15. Bd2 {[%clk 0:02:12.4]}
15... c6 {[%clk 0:02:22]} 16. Nc3 {[%clk 0:02:10]} 16... Be6 {[%clk 0:02:09.5]}
17. Qe2 {[%clk 0:02:00]} 17... f5 {[%clk 0:02:01]} 18. e4 {[%clk 0:01:58.2]}
18... Qd7 {[%clk 0:01:57.9]} 19. Rbe1 {[%clk 0:01:52.6]} 19... Rae8 {[%clk
0:01:51.6]} 20. Kh1 {[%clk 0:01:33.8]} 20... fxe4 {[%clk 0:01:39.2]} 21. Ngxe4
{[%clk 0:01:33.4]} 21... Nxe4 {[%clk 0:01:39.5]} 22. Bxe4 {[%clk 0:01:29.9]}
22... Nf5 {[%clk 0:01:37.1]} 23. Qd3 {[%clk 0:01:29.7]} 23... Qf7 {[%clk
0:01:26.9]} 24. Bxf5 {[%clk 0:01:21.3]} 24... Bxf5 {[%clk 0:01:16.2]} 25. Qxd6
{[%clk 0:00:55.1]} 25... Rd8 {[%clk 0:01:16.1]} 26. Qd7 {[%clk 0:00:55.4]} 0-1

[Event "*** Titled Tuesday Blitz"]
[Site "Chess.com"]
[Date "2021.02.09"]
[Round "5"]
[White "Agibileg"]
[Black "dpopadic"]
[Result "1-0"]
[WhiteElo "2504"]
[BlackElo "2331"]
[TimeControl "180+1"]
[EndTime "10:55:06 PST"]
[Termination "Agibileg won by resignation"]

1. d4 {[%clk 0:03:00.9]} 1... Nf6 {[%clk 0:02:59.1]} 2. c4 {[%clk 0:03:01]} 2...
g6 {[%clk 0:02:59.2]} 3. Nc3 {[%clk 0:03:00.8]} 3... Bg7 {[%clk 0:02:59.8]} 4.
e4 {[%clk 0:03:00.4]} 4... d6 {[%clk 0:03:00.4]} 5. Be2 {[%clk 0:03:00.8]} 5...
O-O {[%clk 0:03:00.7]} 6. Nf3 {[%clk 0:03:01.2]} 6... e5 {[%clk 0:03:00.7]} 7.
O-O {[%clk 0:03:01.5]} 7... Na6 {[%clk 0:03:00.4]} 8. Be3 {[%clk 0:03:00.8]}
8... Ng4 {[%clk 0:03:00]} 9. Bg5 {[%clk 0:03:00.5]} 9... Qe8 {[%clk 0:03:00.2]}
10. dxe5 {[%clk 0:02:58.5]} 10... dxe5 {[%clk 0:02:59.4]} 11. h3 {[%clk
0:02:58.3]} 11... f6 {[%clk 0:02:59.4]} 12. Bd2 {[%clk 0:02:57.7]} 12... Nh6
{[%clk 0:02:59.1]} 13. c5 {[%clk 0:02:58.3]} 13... Nxc5 {[%clk 0:02:58.4]} 14.
Qc1 {[%clk 0:02:53.2]} 14... Nf7 {[%clk 0:02:57.8]} 15. Nd5 {[%clk 0:02:53.7]}
15... Ne6 {[%clk 0:02:57.7]} 16. Nxc7 {[%clk 0:02:53.4]} 16... Nxc7 {[%clk
0:02:57.7]} 17. Qxc7 {[%clk 0:02:53.7]} 17... Nd8 {[%clk 0:02:58]} 18. Be3
{[%clk 0:02:47.9]} 18... Ne6 {[%clk 0:02:54.9]} 19. Qc2 {[%clk 0:02:43.1]} 19...
Bd7 {[%clk 0:02:49.7]} 20. Rfd1 {[%clk 0:02:41]} 20... Qe7 {[%clk 0:02:41.9]}
21. Qb3 {[%clk 0:02:39]} 21... Bc6 {[%clk 0:02:33]} 22. Bc4 {[%clk 0:02:38.5]}
22... Rfe8 {[%clk 0:02:30.2]} 23. Bd5 {[%clk 0:02:36.4]} 23... Kh8 {[%clk
0:02:18.7]} 24. Rac1 {[%clk 0:02:33.8]} 24... Nf4 {[%clk 0:01:51.4]} 25. Bxf4
{[%clk 0:02:21.6]} 25... exf4 {[%clk 0:01:51.4]} 26. Bxc6 {[%clk 0:02:13.3]}
26... bxc6 {[%clk 0:01:51.2]} 27. Rxc6 {[%clk 0:02:13.5]} 27... Qxe4 {[%clk
0:01:50.6]} 28. Rc7 {[%clk 0:02:12.9]} 28... Re7 {[%clk 0:01:44.3]} 29. Rdd7
{[%clk 0:01:44.8]} 29... Rxd7 {[%clk 0:01:43.3]} 30. Rxd7 {[%clk 0:01:45.7]}
30... a5 {[%clk 0:01:43.2]} 31. Qf7 {[%clk 0:01:43.2]} 31... Rg8 {[%clk
0:01:41.7]} 32. Re7 {[%clk 0:01:36]} 32... Qb1+ {[%clk 0:01:39.1]} 33. Re1
{[%clk 0:01:35.1]} 33... Qxb2 {[%clk 0:01:33.3]} 34. Re8 {[%clk 0:01:35.3]} 1-0

[Event "*** Titled Tuesday Blitz"]
[Site "Chess.com"]
[Date "2021.02.09"]
[Round "5"]
[White "ZivkovicN"]
[Black "paladin_ll"]
[Result "1-0"]
[WhiteElo "2463"]
[BlackElo "2158"]
[TimeControl "180+1"]
[EndTime "10:55:06 PST"]
[Termination "ZivkovicN won by resignation"]

1. c4 {[%clk 0:03:00.9]} 1... Nf6 {[%clk 0:02:59.2]} 2. Nf3 {[%clk 0:03:01]}
2... c5 {[%clk 0:02:59.6]} 3. g3 {[%clk 0:03:00.4]} 3... Nc6 {[%clk 0:02:59.8]}
4. Bg2 {[%clk 0:03:00.4]} 4... g6 {[%clk 0:03:00.4]} 5. Nc3 {[%clk 0:02:58.6]}
5... Bg7 {[%clk 0:03:00.5]} 6. O-O {[%clk 0:02:59.1]} 6... O-O {[%clk
0:03:00.7]} 7. d3 {[%clk 0:02:56.4]} 7... d5 {[%clk 0:02:59.9]} 8. cxd5 {[%clk
0:02:56.3]} 8... Nxd5 {[%clk 0:03:00.8]} 9. Bd2 {[%clk 0:02:57.2]} 9... b6
{[%clk 0:03:00.2]} 10. Rc1 {[%clk 0:02:54.4]} 10... Bb7 {[%clk 0:02:59.8]} 11.
a3 {[%clk 0:02:53.2]} 11... Rc8 {[%clk 0:02:59.5]} 12. Nxd5 {[%clk 0:02:52.5]}
12... Qxd5 {[%clk 0:02:58.9]} 13. Bc3 {[%clk 0:02:50.4]} 13... Nd4 {[%clk
0:02:57.9]} 14. Bxd4 {[%clk 0:02:44.5]} 14... Bxd4 {[%clk 0:02:57.2]} 15. Qc2
{[%clk 0:02:39.6]} 15... Rfd8 {[%clk 0:02:51.9]} 16. Rfd1 {[%clk 0:02:36.7]}
16... Qd7 {[%clk 0:02:50.3]} 17. Nd2 {[%clk 0:02:31.9]} 17... Bxg2 {[%clk
0:02:48]} 18. Kxg2 {[%clk 0:02:32.1]} 18... Bf6 {[%clk 0:02:46.2]} 19. Nf3
{[%clk 0:02:27.6]} 19... h5 {[%clk 0:02:43.9]} 20. h3 {[%clk 0:02:26.1]} 20...
Kg7 {[%clk 0:02:42]} 21. b3 {[%clk 0:02:23.2]} 21... Qe6 {[%clk 0:02:33.8]} 22.
Qc4 {[%clk 0:02:19]} 22... Qxc4 {[%clk 0:02:23.6]} 23. bxc4 {[%clk 0:02:18.5]}
23... Bb2 {[%clk 0:02:23.2]} 24. Rc2 {[%clk 0:02:18.7]} 24... Bxa3 {[%clk
0:02:22.5]} 25. Ra1 {[%clk 0:02:18.9]} 25... Bb4 {[%clk 0:02:17.4]} 26. Rxa7
{[%clk 0:02:18.4]} 26... Ra8 {[%clk 0:02:16.7]} 27. Rxe7 {[%clk 0:02:12.9]}
27... Ra1 {[%clk 0:02:07.4]} 28. h4 {[%clk 0:02:07.6]} 28... Kf6 {[%clk
0:02:06.1]} 29. Rb7 {[%clk 0:02:07.2]} 29... Rd6 {[%clk 0:01:59.2]} 30. Ng5
{[%clk 0:02:06.7]} 30... Rc6 {[%clk 0:01:27.6]} 31. Rxf7+ {[%clk 0:01:55.2]}
31... Ke5 {[%clk 0:01:28.5]} 32. f4+ {[%clk 0:01:40.1]} 32... Kd6 {[%clk
0:01:21.3]} 33. Rg7 {[%clk 0:01:30.2]} 33... Rc8 {[%clk 0:01:16.5]} 34. Ne4+
{[%clk 0:01:27.2]} 34... Kc6 {[%clk 0:01:15.5]} 35. Rxg6+ {[%clk 0:01:26.8]}
35... Kb7 {[%clk 0:01:15.7]} 36. Nd6+ {[%clk 0:01:25.8]} 1-0

[Event "*** Titled Tuesday Blitz"]
[Site "Chess.com"]
[Date "2021.02.09"]
[Round "5"]
[White "Smile2005"]
[Black "Srisshhhtea"]
[Result "0-1"]
[WhiteElo "2332"]
[BlackElo "2509"]
[TimeControl "180+1"]
[EndTime "10:55:11 PST"]
[Termination "Srisshhhtea won by resignation"]

1. Nf3 {[%clk 0:03:00.9]} 1... Nf6 {[%clk 0:02:59.4]} 2. g3 {[%clk 0:03:01.6]}
2... e6 {[%clk 0:02:59.1]} 3. Bg2 {[%clk 0:03:02.5]} 3... d5 {[%clk 0:02:59.3]}
4. O-O {[%clk 0:03:03.4]} 4... Be7 {[%clk 0:02:59.7]} 5. d3 {[%clk 0:03:04.3]}
5... O-O {[%clk 0:02:59.4]} 6. Nbd2 {[%clk 0:03:05.2]} 6... c5 {[%clk
0:02:58.6]} 7. e4 {[%clk 0:03:06.1]} 7... Nc6 {[%clk 0:02:56.2]} 8. e5 {[%clk
0:03:05.3]} 8... Nd7 {[%clk 0:02:54.2]} 9. Re1 {[%clk 0:03:06.2]} 9... Qc7
{[%clk 0:02:49.9]} 10. Qe2 {[%clk 0:03:05.8]} 10... Nd4 {[%clk 0:02:49]} 11.
Nxd4 {[%clk 0:03:05.2]} 11... cxd4 {[%clk 0:02:49.9]} 12. Nf3 {[%clk 0:03:05.2]}
12... Qb6 {[%clk 0:02:44.6]} 13. Rb1 {[%clk 0:02:50.5]} 13... a5 {[%clk
0:02:43.2]} 14. Bf4 {[%clk 0:02:49.6]} 14... a4 {[%clk 0:02:38.7]} 15. h4 {[%clk
0:02:49.3]} 15... Rd8 {[%clk 0:02:27.6]} 16. Kh2 {[%clk 0:02:44.6]} 16... Nf8
{[%clk 0:02:27.5]} 17. Rh1 {[%clk 0:02:44.3]} 17... Bd7 {[%clk 0:02:24.6]} 18.
Ng5 {[%clk 0:02:41.2]} 18... h6 {[%clk 0:02:09]} 19. Qh5 {[%clk 0:02:40.3]}
19... Be8 {[%clk 0:02:02.7]} 20. Qg4 {[%clk 0:02:23.1]} 20... Rdc8 {[%clk
0:01:46.1]} 21. Nf3 {[%clk 0:02:10.5]} 21... Ng6 {[%clk 0:01:41.4]} 22. Bxh6
{[%clk 0:02:01.9]} 22... gxh6 {[%clk 0:01:40.8]} 23. h5 {[%clk 0:02:02.2]} 23...
Bf8 {[%clk 0:01:37.7]} 24. hxg6 {[%clk 0:02:01.6]} 24... fxg6 {[%clk 0:01:38.6]}
25. Nxd4 {[%clk 0:01:56]} 25... Bf7 {[%clk 0:01:34.2]} 26. Kg1 {[%clk
0:01:44.6]} 26... Bg7 {[%clk 0:01:33.6]} 27. c3 {[%clk 0:01:32]} 27... Rxc3
{[%clk 0:01:32.7]} 28. Bxd5 {[%clk 0:01:21.9]} 28... exd5 {[%clk 0:01:24.8]} 29.
Kg2 {[%clk 0:01:17.9]} 29... Rc7 {[%clk 0:01:20.7]} 30. e6 {[%clk 0:01:14.4]}
30... Qxd4 {[%clk 0:01:15]} 31. exf7+ {[%clk 0:01:13.9]} 31... Rxf7 {[%clk
0:01:15.6]} 32. Qxd4 {[%clk 0:01:10.3]} 32... Bxd4 {[%clk 0:01:16.5]} 33. f4
{[%clk 0:01:10.7]} 33... Kg7 {[%clk 0:01:13.7]} 0-1

[Event "*** Titled Tuesday Blitz"]
[Site "Chess.com"]
[Date "2021.02.09"]
[Round "5"]
[White "andrzej"]
[Black "johnathan113"]
[Result "0-1"]
[WhiteElo "2334"]
[BlackElo "2612"]
[TimeControl "180+1"]
[EndTime "10:55:15 PST"]
[Termination "johnathan113 won by resignation"]

1. e4 {[%clk 0:02:59.8]} 1... c5 {[%clk 0:02:59.7]} 2. Nc3 {[%clk 0:03:00.3]}
2... g6 {[%clk 0:02:59.6]} 3. d4 {[%clk 0:02:58.6]} 3... cxd4 {[%clk 0:03:00.5]}
4. Qxd4 {[%clk 0:02:58.8]} 4... Nf6 {[%clk 0:03:01.2]} 5. e5 {[%clk 0:02:58.9]}
5... Nc6 {[%clk 0:03:01.5]} 6. Qf4 {[%clk 0:02:56.4]} 6... Nh5 {[%clk
0:03:00.2]} 7. Qe3 {[%clk 0:02:49.4]} 7... Bg7 {[%clk 0:02:56.7]} 8. g4 {[%clk
0:02:34]} 8... d5 {[%clk 0:02:56.6]} 9. exd6 {[%clk 0:02:18.8]} 9... Bxg4 {[%clk
0:02:55.7]} 10. dxe7 {[%clk 0:01:58.4]} 10... Nxe7 {[%clk 0:02:56.6]} 11. Be2
{[%clk 0:01:57.6]} 11... Bxe2 {[%clk 0:02:51.5]} 12. Ngxe2 {[%clk 0:01:57.7]}
12... O-O {[%clk 0:02:52.4]} 13. Bd2 {[%clk 0:01:53.6]} 13... Nf5 {[%clk
0:02:50.9]} 14. Qd3 {[%clk 0:01:53]} 14... Qxd3 {[%clk 0:02:47.9]} 15. cxd3
{[%clk 0:01:53.9]} 15... Rad8 {[%clk 0:02:48.6]} 16. Ng3 {[%clk 0:01:49.5]}
16... Nhxg3 {[%clk 0:02:45.7]} 17. hxg3 {[%clk 0:01:50.4]} 17... Rxd3 {[%clk
0:02:45.8]} 18. O-O-O {[%clk 0:01:51]} 18... Rfd8 {[%clk 0:02:43.7]} 19. Bf4
{[%clk 0:01:46.1]} 19... Bxc3 {[%clk 0:02:38.3]} 20. Rxd3 {[%clk 0:01:37.4]}
20... Rxd3 {[%clk 0:02:37.4]} 21. bxc3 {[%clk 0:01:33.2]} 21... Rxc3+ {[%clk
0:02:37]} 22. Kb2 {[%clk 0:01:33.2]} 22... Rf3 {[%clk 0:02:36.7]} 23. Rd1 {[%clk
0:01:24.2]} 23... Rxf2+ {[%clk 0:02:36.6]} 24. Kb3 {[%clk 0:01:24.7]} 24... h5
{[%clk 0:02:27.6]} 25. Rd8+ {[%clk 0:01:20.2]} 25... Kg7 {[%clk 0:02:28.1]} 26.
Be5+ {[%clk 0:01:15.5]} 26... Kh6 {[%clk 0:02:03.1]} 27. Rd7 {[%clk 0:00:53.4]}
27... Nxg3 {[%clk 0:01:58.3]} 28. Rxb7 {[%clk 0:00:49.7]} 28... h4 {[%clk
0:01:57.8]} 29. Rxa7 {[%clk 0:00:42.6]} 29... h3 {[%clk 0:01:57.9]} 30. Bxg3
{[%clk 0:00:41.8]} 30... Rf3+ {[%clk 0:01:58.3]} 31. Kc4 {[%clk 0:00:42.1]}
31... Rxg3 {[%clk 0:01:59.2]} 32. Rxf7 {[%clk 0:00:41.1]} 32... h2 {[%clk
0:01:58.2]} 33. Rf8 {[%clk 0:00:37.9]} 33... Kg7 {[%clk 0:01:58.3]} 34. Rf1
{[%clk 0:00:33.9]} 34... Rg1 {[%clk 0:01:58.3]} 0-1

[Event "*** Titled Tuesday Blitz"]
[Site "Chess.com"]
[Date "2021.02.09"]
[Round "5"]
[White "Guzman70"]
[Black "xberli"]
[Result "0-1"]
[WhiteElo "2250"]
[BlackElo "2456"]
[TimeControl "180+1"]
[EndTime "10:55:17 PST"]
[Termination "xberli won by resignation"]

1. d4 {[%clk 0:03:00.9]} 1... Nf6 {[%clk 0:02:59.2]} 2. Bf4 {[%clk 0:02:58.3]}
2... e6 {[%clk 0:02:56.7]} 3. e3 {[%clk 0:02:56.2]} 3... Be7 {[%clk 0:02:52.9]}
4. Nf3 {[%clk 0:02:54.8]} 4... O-O {[%clk 0:02:53.8]} 5. c4 {[%clk 0:02:54.4]}
5... d5 {[%clk 0:02:43.4]} 6. Nc3 {[%clk 0:02:53.7]} 6... Re8 {[%clk 0:02:37.4]}
7. Bd3 {[%clk 0:02:41]} 7... dxc4 {[%clk 0:02:33.9]} 8. Bxc4 {[%clk 0:02:41.9]}
8... Nd5 {[%clk 0:02:33.6]} 9. Bg3 {[%clk 0:02:35.7]} 9... c5 {[%clk 0:02:29.1]}
10. O-O {[%clk 0:02:20.9]} 10... Nxc3 {[%clk 0:02:28.5]} 11. bxc3 {[%clk
0:02:20.4]} 11... Nd7 {[%clk 0:02:24.5]} 12. Qd3 {[%clk 0:02:04.5]} 12... Bf6
{[%clk 0:02:20.9]} 13. Rad1 {[%clk 0:01:54.8]} 13... Qa5 {[%clk 0:02:14.2]} 14.
Ne5 {[%clk 0:01:38.2]} 14... Nxe5 {[%clk 0:02:02]} 15. dxe5 {[%clk 0:01:38.1]}
15... Be7 {[%clk 0:01:59.1]} 16. Rb1 {[%clk 0:01:22.8]} 16... b6 {[%clk
0:01:51.7]} 17. Qe4 {[%clk 0:01:21]} 17... Rb8 {[%clk 0:01:41.7]} 18. Bd3 {[%clk
0:01:19.2]} 18... g6 {[%clk 0:01:38.4]} 19. h4 {[%clk 0:00:53.5]} 19... Ba6
{[%clk 0:01:28.4]} 20. Bxa6 {[%clk 0:00:48.1]} 20... Qxa6 {[%clk 0:01:28.2]} 21.
h5 {[%clk 0:00:46.1]} 21... Red8 {[%clk 0:01:26.5]} 22. Bh4 {[%clk 0:00:44.3]}
22... Qb7 {[%clk 0:01:14]} 23. Bf6 {[%clk 0:00:40.1]} 0-1

[Event "*** Titled Tuesday Blitz"]
[Site "Chess.com"]
[Date "2021.02.09"]
[Round "5"]
[White "chesslh19"]
[Black "alejogarcia1999"]
[Result "0-1"]
[WhiteElo "2242"]
[BlackElo "2442"]
[TimeControl "180+1"]
[EndTime "10:55:18 PST"]
[Termination "alejogarcia1999 won by resignation"]

1. e4 {[%clk 0:03:00.9]} 1... c5 {[%clk 0:02:59.7]} 2. Nf3 {[%clk 0:03:00.3]}
2... e6 {[%clk 0:02:59.7]} 3. d4 {[%clk 0:03:00.6]} 3... cxd4 {[%clk 0:03:00.6]}
4. Nxd4 {[%clk 0:03:01.4]} 4... Nc6 {[%clk 0:03:00.9]} 5. Nc3 {[%clk 0:03:00.3]}
5... Nf6 {[%clk 0:03:00.9]} 6. Ndb5 {[%clk 0:02:59.9]} 6... d6 {[%clk
0:03:00.4]} 7. Bf4 {[%clk 0:02:59.5]} 7... e5 {[%clk 0:03:01]} 8. Bg5 {[%clk
0:02:59.9]} 8... a6 {[%clk 0:03:01.9]} 9. Na3 {[%clk 0:02:59]} 9... b5 {[%clk
0:03:02.8]} 10. Nd5 {[%clk 0:02:59.3]} 10... Be7 {[%clk 0:03:02.5]} 11. Bxf6
{[%clk 0:03:00]} 11... Bxf6 {[%clk 0:03:03.4]} 12. c3 {[%clk 0:02:59.2]} 12...
Bg5 {[%clk 0:03:00.3]} 13. Nc2 {[%clk 0:02:58.9]} 13... Rb8 {[%clk 0:03:00.2]}
14. Bd3 {[%clk 0:02:14.2]} 14... O-O {[%clk 0:02:58.8]} 15. O-O {[%clk
0:02:12.7]} 15... a5 {[%clk 0:02:58.4]} 16. Qe2 {[%clk 0:01:53.5]} 16... b4
{[%clk 0:02:55.5]} 17. Bb5 {[%clk 0:01:36.8]} 17... Ne7 {[%clk 0:02:49.6]} 18.
Nxe7+ {[%clk 0:01:27.3]} 18... Qxe7 {[%clk 0:02:44.2]} 19. Bc4 {[%clk
0:01:27.2]} 19... bxc3 {[%clk 0:02:42.8]} 20. bxc3 {[%clk 0:01:27]} 20... Qc7
{[%clk 0:02:40]} 21. Qd3 {[%clk 0:01:06.6]} 21... Be6 {[%clk 0:02:36.1]} 22.
Bxe6 {[%clk 0:00:46.2]} 22... fxe6 {[%clk 0:02:37]} 23. Rab1 {[%clk 0:00:45.2]}
23... Rxb1 {[%clk 0:02:28.1]} 24. Rxb1 {[%clk 0:00:44.4]} 24... Qc5 {[%clk
0:02:29]} 25. Ne3 {[%clk 0:00:41.5]} 25... Bxe3 {[%clk 0:02:28.6]} 26. Qxe3
{[%clk 0:00:41.4]} 26... Rc8 {[%clk 0:02:24.4]} 27. Qxc5 {[%clk 0:00:39.5]}
27... Rxc5 {[%clk 0:02:24.1]} 28. Rb3 {[%clk 0:00:39.2]} 28... a4 {[%clk
0:02:23]} 29. Ra3 {[%clk 0:00:38.6]} 29... Rc4 {[%clk 0:02:23]} 30. f3 {[%clk
0:00:38.2]} 30... d5 {[%clk 0:02:22.2]} 31. exd5 {[%clk 0:00:36.1]} 31... exd5
{[%clk 0:02:23.1]} 32. Kf2 {[%clk 0:00:36.7]} 32... Kf7 {[%clk 0:02:23.6]} 33.
Ke3 {[%clk 0:00:36.9]} 33... g5 {[%clk 0:02:23.7]} 34. Kd3 {[%clk 0:00:36.6]}
34... Kf6 {[%clk 0:02:23.5]} 35. Ke3 {[%clk 0:00:36.1]} 35... Kf5 {[%clk
0:02:23.6]} 36. g3 {[%clk 0:00:36]} 36... h5 {[%clk 0:02:23.7]} 37. Kd3 {[%clk
0:00:35.7]} 37... g4 {[%clk 0:02:23.3]} 38. Ke3 {[%clk 0:00:33.7]} 38... gxf3
{[%clk 0:02:23.2]} 39. Kxf3 {[%clk 0:00:34.6]} 39... e4+ {[%clk 0:02:23]} 40.
Ke3 {[%clk 0:00:34.9]} 40... Kg4 {[%clk 0:02:23.2]} 41. Kf2 {[%clk 0:00:34.8]}
41... Kh3 {[%clk 0:02:23.3]} 42. Kg1 {[%clk 0:00:34.1]} 42... e3 {[%clk
0:02:23.2]} 43. Kf1 {[%clk 0:00:30.1]} 43... Kxh2 {[%clk 0:02:24.1]} 44. Ke2
{[%clk 0:00:30.4]} 44... Kxg3 {[%clk 0:02:24.1]} 45. Kxe3 {[%clk 0:00:30.3]}
45... h4 {[%clk 0:02:23.7]} 46. Ke2 {[%clk 0:00:30.6]} 46... h3 {[%clk
0:02:23.9]} 47. Kf1 {[%clk 0:00:31.1]} 47... h2 {[%clk 0:02:23.1]} 0-1

[Event "*** Titled Tuesday Blitz"]
[Site "Chess.com"]
[Date "2021.02.09"]
[Round "5"]
[White "bugsbunny444"]
[Black "DrVelja"]
[Result "0-1"]
[WhiteElo "2594"]
[BlackElo "2832"]
[TimeControl "180+1"]
[EndTime "10:55:20 PST"]
[Termination "DrVelja won by resignation"]

1. Nf3 {[%clk 0:03:00.9]} 1... Nf6 {[%clk 0:02:59]} 2. c4 {[%clk 0:03:01.2]}
2... g6 {[%clk 0:02:59]} 3. b4 {[%clk 0:03:01.5]} 3... Bg7 {[%clk 0:02:58.6]} 4.
Bb2 {[%clk 0:03:02.2]} 4... O-O {[%clk 0:02:59.5]} 5. g3 {[%clk 0:03:02.7]} 5...
d6 {[%clk 0:03:00.4]} 6. Bg2 {[%clk 0:03:03.1]} 6... e5 {[%clk 0:02:59.4]} 7.
O-O {[%clk 0:03:03.6]} 7... e4 {[%clk 0:02:57]} 8. Nd4 {[%clk 0:03:03.4]} 8...
c5 {[%clk 0:02:53.1]} 9. bxc5 {[%clk 0:03:03.3]} 9... dxc5 {[%clk 0:02:54]} 10.
Nb3 {[%clk 0:03:03.8]} 10... Nbd7 {[%clk 0:02:41.6]} 11. Nc3 {[%clk 0:02:56.3]}
11... Re8 {[%clk 0:02:31.7]} 12. d3 {[%clk 0:02:10.1]} 12... e3 {[%clk
0:02:26.1]} 13. f4 {[%clk 0:01:22.3]} 13... Ng4 {[%clk 0:02:20.5]} 14. Qc2
{[%clk 0:01:17.4]} 14... a5 {[%clk 0:02:13.5]} 15. a4 {[%clk 0:01:02.3]} 15...
Ra6 {[%clk 0:02:12.2]} 16. Nd5 {[%clk 0:00:50.1]} 16... Ngf6 {[%clk 0:02:06.3]}
17. Nxf6+ {[%clk 0:00:25.7]} 17... Bxf6 {[%clk 0:02:07.2]} 18. Rab1 {[%clk
0:00:19]} 18... Rd6 {[%clk 0:02:04.2]} 19. Bxf6 {[%clk 0:00:17.1]} 19... Rxf6
{[%clk 0:02:05.1]} 20. Nc1 {[%clk 0:00:12.3]} 20... b6 {[%clk 0:02:04.2]} 21.
Na2 {[%clk 0:00:12.5]} 21... Rd6 {[%clk 0:02:01.5]} 22. Nc3 {[%clk 0:00:12.7]}
22... Nf6 {[%clk 0:02:02.2]} 23. Rb3 {[%clk 0:00:08.7]} 23... h5 {[%clk
0:02:01.1]} 24. Rfb1 {[%clk 0:00:07.5]} 24... h4 {[%clk 0:02:01]} 25. Nd5 {[%clk
0:00:07.4]} 25... h3 {[%clk 0:01:53.7]} 26. Bf3 {[%clk 0:00:06.8]} 26... Nxd5
{[%clk 0:01:53.7]} 27. Bxd5 {[%clk 0:00:07]} 27... Rxd5 {[%clk 0:01:52.6]} 0-1